bitfinex/quotes_ETHUSD_20250822
["timestamp","ask_amount","ask_price","bid_price","bid_amount"]
[1755866934796,0.02,4267.8,4267.4,1.804]
[1755866935000,0.02,4267.8,4267.5,4.369]
[1755866935196,0.02,4267.8,4267.5,4.8243]
[1755866935398,0.02,4267.8,4267.5,4.369]
[1755866935694,0.02,4267.8,4267.6,4.8203]
[1755866935905,0.02,4267.8,4267.4,1.804]
[1755866937103,0.4665,4267.7,4266.8,6.169]
[1755866937514,0.02,4267.8,4266.8,1.804]
[1755866937801,0.02,4267.8,4266.9,0.47873621]
[1755866938271,0.02,4267.8,4267.0,4.363]
[1755866938605,0.02,4267.8,4267.1,4.362]
[1755866938772,0.02,4267.8,4267.2,4.361]
[1755866939407,0.02,4267.8,4266.9,0.4553]
[1755866939590,0.02,4267.8,4267.2,4.36]
[1755866940320,0.02,4267.8,4266.8,1.804]
[1755866941103,0.68,4267.8,4266.3,1.955]
[1755866941306,0.15132134,4267.7,4266.2,1.803]
[1755866941511,0.02,4267.8,4266.3,0.47873951]
[1755866941817,0.02,4267.8,4266.3,0.4553]
[1755866941980,0.02,4267.8,4266.4,4.353]
[1755866942407,0.02,4267.8,4266.5,0.47873841]
[1755866943516,0.0192,4267.8,4266.5,0.47873841]
[1755866943892,0.0192,4267.8,4266.7,17.18784634]
[1755866944092,0.0192,4267.8,4266.8,0.47873676]
[1755866945292,0.0192,4267.8,4267.7,2.34318251]
[1755866945498,0.0192,4267.8,4267.7,8.51461433]
[1755866945681,0.0192,4267.8,4267.7,8.94648251]
[1755866945908,0.0202,4267.8,4267.7,9.04040151]
[1755866946111,0.001,4268.3,4268.2,2.34290801]
[1755866946498,0.001,4268.3,4268.2,2.79820801]
[1755866946710,0.00786073,4268.8,4268.7,2.34263358]
[1755866946909,0.02,4269.8,4269.6,2.34212751]
[1755866947111,0.02,4269.8,4269.7,8.74571851]
[1755866947298,0.02,4269.8,4269.7,8.89413958]
[1755866947502,0.02,4269.8,4269.7,7.00735466]
[1755866947717,0.02,4269.8,4269.7,9.34943958]
[1755866948035,0.02,4269.8,4269.7,19.853201]
[1755866948216,0.02,4269.8,4269.7,22.19528592]
[1755866948421,0.02,4269.8,4269.7,24.191201]
[1755866948821,0.02,4269.8,4269.7,23.95598825]
[1755866948991,0.02,4269.8,4269.7,26.29807317]
[1755866949388,0.02,4269.8,4269.7,2.2583]
[1755866949586,0.02,4269.8,4269.7,6.5913]
[1755866949786,0.02,4269.8,4269.7,1.803]
[1755866949991,0.02,4269.8,4269.7,6.136]
[1755866950485,0.02,4269.8,4269.7,1.803]
[1755866950921,0.02,4269.8,4269.3,4.33]
[1755866951496,0.02,4269.8,4269.4,4.329]
[1755866951699,0.4619,4269.8,4269.0,1.802]
[1755866951902,0.4619,4269.8,4269.0,6.129]
[1755866952226,0.4619,4269.8,4268.2,4.327]
[1755866952590,0.02,4269.8,4268.3,0.47482853]
[1755866953016,0.02,4269.8,4268.9,17.18784634]
[1755866953191,0.02,4269.8,4269.6,17.18784634]
[1755866953386,0.02,4269.8,4269.7,8.47208492]
[1755866953599,2.0,4270.0,4269.7,8.47208492]
[1755866953600,2.0,4270.0,4269.9,2.34197522]
[1755866953831,2.0,4270.0,4269.7,8.92348492]
[1755866953832,2.0,4270.0,4269.8,17.63924634]
[1755866953992,2.0,4270.0,4269.9,4.331]
[1755866954335,2.0,4270.0,4269.8,0.17922233]
[1755866954633,2.0,4270.0,4269.9,4.80381975]
[1755866954932,2.0,4270.0,4269.9,4.331]
[1755866955297,2.0,4270.0,4269.9,4.80581975]
[1755866955595,2.0,4270.0,4269.9,4.7824]
[1755866955796,1.9992,4270.0,4269.9,4.7824]
[1755866955993,1.9992,4270.0,4269.9,7.12437522]
[1755866956808,0.004,4270.7,4269.9,4.7824]
[1755866957011,0.004,4270.7,4270.5,2.34162657]
[1755866957233,0.004,4270.7,4270.2,2.34178219]
[1755866957234,0.004,4270.7,4270.6,8.73516991]
[1755866957432,0.004,4270.7,4270.6,8.709754]
[1755866957619,0.004,4270.7,4270.6,12.161154]
[1755866957820,0.004,4270.7,4270.6,9.161154]
[1755866958249,0.004,4270.7,4270.6,2.48756266]
[1755866958413,0.004,4270.7,4270.6,6.15941591]
[1755866958730,0.004,4270.7,4269.8,17.70792546]
[1755866958731,0.004,4270.7,4270.0,1.801]
[1755866959345,0.4419,4270.6,4270.1,4.332]
[1755866959523,0.004,4270.7,4270.0,1.801]
[1755866959724,0.4459,4270.7,4270.1,4.331]
[1755866959904,0.004,4270.7,4270.2,4.33]
[1755866960249,0.4419,4270.6,4270.0,1.801]
[1755866960539,0.004,4270.7,4270.3,4.329]
[1755866960835,0.004,4270.7,4270.4,0.02341701]
[1755866961000,0.004,4270.7,4270.3,4.329]
[1755866961432,0.004,4270.7,4270.0,1.801]
[1755866961647,0.004,4270.7,4270.1,0.02341865]
[1755866961852,0.004,4270.7,4270.1,4.35041865]
[1755866962747,0.004,4270.7,4270.2,4.327]
[1755866963112,0.004,4270.7,4270.0,4.14286803]
[1755866963318,0.004,4270.7,4270.1,4.327]
[1755866963647,0.004,4270.7,4270.2,4.3464181]
[1755866963957,0.004,4270.7,4270.3,2.34174939]
[1755866964168,0.004,4270.7,4270.6,2.34159134]
[1755866964521,0.004,4270.7,4270.6,0.47481591]
[1755866964740,0.004,4270.7,4270.6,0.4514]
[1755866964951,0.004,4270.7,4270.0,4.801]
[1755866965257,0.004,4270.7,4270.1,4.319]
[1755866965626,0.004,4270.7,4270.2,4.317]
[1755866966111,0.4419,4270.6,4270.2,4.317]
[1755866966316,0.4419,4270.5,4268.9,2.2429]
[1755866966620,0.4419,4270.5,4269.2,3.106]
[1755866967033,0.004,4270.7,4269.2,3.106]
[1755866967558,0.004,4270.7,4269.3,4.319]
[1755866967758,0.4419,4270.6,4269.4,4.318]
[1755866967963,0.004,4270.7,4269.5,0.02342194]
[1755866968260,0.0032,4270.7,4269.5,0.02342194]
[1755866968567,0.0032,4270.7,4269.2,0.004]
[1755866968568,0.4419,4270.6,4269.2,0.004]
[1755866968720,0.4419,4270.6,4269.3,2.269]
[1755866969042,0.0032,4270.7,4269.4,0.02342249]
[1755866969217,0.0032,4270.7,4269.4,0.47482249]
[1755866969551,0.0032,4270.7,4269.4,2.81705786]
[1755866969745,0.0032,4270.7,4269.4,0.4514]
[1755866969947,0.0032,4270.7,4269.6,2.34212964]
[1755866970147,0.0032,4270.7,4269.7,2.08035296]
[1755866970357,0.0032,4270.7,4269.7,2.1037738]
[1755866970583,0.0032,4270.7,4269.8,4.225]
[1755866970865,0.0032,4270.7,4269.9,4.225]
[1755866971023,0.0032,4270.7,4269.9,4.24841975]
[1755866971228,0.0032,4270.7,4270.0,4.317]
[1755866972032,0.0032,4270.7,4270.0,4.316]
[1755866972033,0.3122,4270.1,4270.0,4.316]
[1755866972242,0.4419,4270.6,4270.0,4.316]
[1755866972827,0.4419,4270.6,4270.0,4.313]
[1755866973043,0.3122,4270.1,4269.7,6.114]
[1755866973258,0.4419,4270.0,4269.2,0.004]
[1755866973414,0.3122,4269.3,4269.2,0.004]
[1755866973925,0.7541,4269.3,4269.2,0.004]
[1755866974325,0.3122,4269.3,4269.2,0.004]
[1755866974957,0.4419,4269.6,4269.2,0.004]
[1755866975123,0.3122,4269.3,4269.2,0.004]
[1755866975848,0.4419,4270.0,4269.2,0.004]
[1755866976038,0.80843722,4270.6,4269.2,0.004]
[1755866976351,0.4419,4270.6,4269.2,0.004]
[1755866976554,0.4419,4269.9,4269.2,0.004]
[1755866976875,0.4419,4270.5,4269.2,0.004]
[1755866978274,0.0032,4270.7,4269.5,2.34217892]
[1755866978474,0.0032,4270.7,4269.6,2.83224875]
[1755866978680,0.0032,4270.7,4269.7,4.326]
[1755866978877,0.0032,4270.7,4269.8,1.8254203]
[1755866979173,0.0032,4270.7,4269.8,1.99913756]
[1755866979377,0.001,4270.5,4269.8,2.46583756]
[1755866979576,0.4352,4270.0,4269.9,2.80867522]
[1755866979780,0.4352,4270.0,4269.9,3.12197522]
[1755866980149,0.4352,4270.0,4269.9,0.78]
[1755866980350,0.4344,4270.0,4269.9,3.12197522]
[1755866980544,0.4344,4270.0,4269.9,0.78]
[1755866980750,0.4344,4270.0,4269.8,1.802]
[1755866980958,0.4344,4270.0,4269.7,0.704151]
[1755866981159,0.4344,4270.0,4269.4,4.323]
[1755866981358,0.4344,4270.0,4269.5,0.02342194]
[1755866981647,0.4344,4270.0,4269.4,0.4344]
[1755866981860,4.4344,4270.0,4269.5,4.321]
[1755866982056,4.4344,4270.0,4269.6,0.02342139]
[1755866982481,4.4344,4270.0,4269.5,4.32]
[1755866982647,0.4344,4269.9,4269.5,4.32]
[1755866982843,0.4344,4269.9,4269.4,0.704302]
[1755866983048,4.4344,4270.0,4269.5,4.318]
[1755866983249,4.4344,4270.0,4269.6,0.02342139]
[1755866983449,4.4344,4270.0,4269.6,0.4667]
[1755866983672,4.4344,4270.0,4269.9,0.3133]
[1755866983986,4.4344,4270.0,4269.9,0.78]
[1755866984586,4.4344,4270.0,4269.9,0.3133]
[1755866984784,4.4344,4270.0,4269.9,4.316]
[1755866984948,5.1841,4270.0,4269.4,0.704302]
[1755866985148,4.7497,4270.0,4269.5,4.33642194]
[1755866985384,4.4344,4270.0,4269.5,4.313]
[1755866985683,4.4344,4270.0,4269.9,0.3133]
[1755866985981,2.4344,4270.0,4269.4,1.96471994]
[1755866986181,2.4344,4270.0,4269.5,4.314]
[1755866986481,2.4344,4270.0,4269.6,0.02342139]
[1755866986650,2.4344,4270.0,4269.9,0.3133]
[1755866986856,2.4344,4270.0,4269.9,4.38239316]
[1755866987985,2.4344,4270.0,4269.9,3.12197522]
[1755866988950,2.4344,4270.0,4269.9,3.23877522]
[1755866989476,2.4344,4270.0,4269.9,7.55377522]
[1755866990402,2.4344,4270.0,4269.9,2.65527522]
[1755866990550,2.4344,4270.0,4269.9,6.96627522]
[1755866990751,2.4344,4270.0,4269.9,7.43297522]
[1755866991093,2.4344,4270.0,4269.9,3.12197522]
[1755866991448,2.4344,4270.0,4269.9,6.96727522]
[1755866991653,2.4344,4270.0,4269.9,6.96827522]
[1755866991853,2.4344,4270.0,4269.9,4.312]
[1755866992477,2.4336,4270.0,4269.9,4.312]
[1755866992686,2.4336,4270.0,4269.9,4.6253]
[1755866992857,2.4336,4270.0,4269.9,2.65527522]
[1755866993051,2.4336,4270.0,4269.9,8.22529275]
[1755866993284,2.4336,4270.0,4269.9,6.96527522]
[1755866994070,2.4336,4270.0,4269.9,4.6233]
[1755866994498,2.4336,4270.0,4269.9,6.96527522]
[1755866994681,2.4336,4270.0,4269.9,5.009079]
[1755866994854,2.4336,4270.0,4269.9,0.704079]
[1755866995191,2.4336,4270.0,4269.9,5.007079]
[1755866995397,2.4336,4270.0,4269.9,0.704079]
[1755866995610,2.4336,4270.0,4269.9,5.007079]
[1755866995782,2.4336,4270.0,4269.9,0.704079]
[1755866995954,3.1833,4270.0,4269.9,0.704079]
[1755866996369,3.1833,4270.0,4269.9,5.004079]
[1755866996567,3.1833,4270.0,4269.9,0.704079]
[1755866996792,3.1833,4270.0,4269.9,5.002079]
[1755866997495,3.1833,4270.0,4269.9,4.296]
[1755866997496,2.4336,4270.0,4269.9,4.296]
[1755866997697,2.4336,4270.0,4269.9,5.02361175]
[1755866997893,2.4336,4270.0,4269.9,7.65546722]
[1755866998554,2.4336,4270.0,4269.9,8.12216722]
[1755866999093,2.4346,4270.0,4269.9,8.12216722]
[1755866999384,2.4346,4270.0,4269.9,9.49898475]
[1755866999693,2.4346,4270.0,4269.9,8.23896722]
[1755866999997,2.4346,4270.0,4269.9,1.017492]
[1755867000193,2.4346,4270.0,4269.9,7.65546722]
[1755867000496,2.4346,4270.0,4269.9,8.12216722]
[1755867000805,2.4346,4270.0,4269.9,5.004192]
[1755867001110,2.4346,4270.0,4269.9,1.96455292]
[1755867001265,2.4346,4270.0,4269.9,7.34416722]
[1755867001458,2.4346,4270.0,4269.9,6.26255292]
[1755867001655,2.4346,4270.0,4269.9,0.704192]
[1755867001867,2.4346,4270.0,4269.9,5.001192]
[1755867002257,2.4346,4270.0,4269.9,7.34316722]
[1755867002578,2.4346,4270.0,4269.9,5.001192]
[1755867003143,2.4346,4270.0,4269.9,5.000192]
[1755867003303,3.1843,4270.0,4269.9,0.704192]
[1755867003458,3.50273,4270.0,4269.9,4.998192]
[1755867003797,3.50273,4270.0,4269.9,4.294]
[1755867004361,3.50273,4270.0,4269.8,0.004]
[1755867004558,0.4344,4269.9,4269.8,0.004]
[1755867004873,0.7489,4269.9,4269.8,0.004]
[1755867005080,1.099093,4269.9,4269.2,0.004]
[1755867005408,0.665493,4269.9,4269.2,0.004]
[1755867005707,0.13095346,4269.8,4269.2,0.004]
[1755867005859,0.9753,4269.3,4269.2,0.004]
[1755867006381,1.10619658,4269.3,4269.2,0.004]
[1755867006555,1.94571624,4269.3,4269.2,0.004]
[1755867006916,37.83828072,4269.3,4269.2,0.004]
[1755867007107,38.34104411,4269.3,4269.2,0.004]
[1755867007401,5.49597637,4269.3,4269.2,0.004]
[1755867007582,5.38011624,4269.3,4269.2,0.004]
[1755867007786,5.38005068,4269.3,4269.2,0.004]
[1755867007987,35.88248541,4269.3,4269.2,0.004]
[1755867008243,0.66,4268.2,4267.8,0.02]
[1755867008452,0.9608,4267.9,4266.1,0.093983]
[1755867008622,3.66,4267.6,4265.7,1.801]
[1755867008804,3.66,4267.6,4265.3,0.004]
[1755867008805,0.3008,4266.9,4265.3,0.097998]
[1755867009126,0.4496,4266.8,4265.3,0.004]
[1755867009750,0.3008,4265.9,4265.3,0.004]
[1755867010105,0.7504,4265.9,4265.3,0.004]
[1755867010616,0.70484,4265.8,4265.3,0.004]
[1755867010824,0.3008,4265.4,4265.3,0.004]
[1755867011025,0.9608,4265.4,4265.3,0.004]
[1755867011237,1.4104,4265.4,4265.3,0.004]
[1755867011751,6.754846,4265.4,4265.3,0.004]
[1755867012048,41.95975921,4265.4,4265.3,0.004]
[1755867012354,0.66,4264.8,4262.1,0.17931706]
[1755867012645,0.9608,4263.9,4262.1,0.17931706]
[1755867012852,10.45288,4263.9,4262.1,0.17931706]
[1755867013005,3.66,4263.8,4261.6,1.802]
[1755867013206,30.66,4263.7,4261.3,0.004]
[1755867013456,0.66,4263.3,4261.3,0.004]
[1755867013605,3.66,4263.1,4261.3,0.004]
[1755867013811,3.66,4262.9,4261.3,0.004]
[1755867014357,6.5476,4263.0,4261.3,0.004]
[1755867014358,3.66,4262.7,4261.3,0.004]
[1755867014597,30.0,4262.6,4261.3,0.004]
[1755867014801,4.7486,4262.6,4261.3,0.004]
[1755867015091,0.4496,4262.6,4261.3,0.004]
[1755867015443,0.36721846,4262.5,4261.3,0.004]
[1755867015955,1.802,4263.0,4261.5,0.4681]
[1755867016364,0.3008,4261.9,4261.3,0.004]
[1755867016752,0.7504,4261.9,4261.3,0.004]
[1755867016952,0.7496,4261.9,4261.3,0.004]
[1755867017354,3.45597133,4261.9,4261.3,0.004]
[1755867017565,36.45597133,4261.9,4261.3,0.004]
[1755867017786,36.47173963,4261.9,4261.3,0.004]
[1755867017944,10.77073963,4261.9,4261.3,0.004]
[1755867018296,8.4086,4261.9,4261.3,0.004]
[1755867018499,8.4086,4261.9,4261.8,0.024]
[1755867019341,0.4496,4261.9,4261.8,0.024]
[1755867019540,1.803,4262.1,4261.8,0.024]
[1755867019791,0.4496,4262.5,4261.8,0.024]
[1755867019987,0.4496,4262.0,4261.8,0.024]
[1755867020157,0.36726575,4262.1,4261.8,0.024]
[1755867020714,17.1043386,4264.5,4261.8,0.024]
[1755867020715,4.302,4263.0,4261.8,0.024]
[1755867021000,0.3672148,4262.5,4261.8,0.118089]
[1755867021776,0.3672148,4262.5,4261.8,0.024]
[1755867021984,0.87712148,4262.4,4261.8,0.024]
[1755867022171,0.21712148,4262.4,4261.8,0.024]
[1755867022485,0.3672148,4262.5,4261.8,0.024]
[1755867023187,4.298,4263.2,4261.9,0.02346371]
[1755867023488,0.36717692,4263.0,4262.0,2.2721]
[1755867023797,1.804,4264.2,4262.1,0.49156261]
[1755867023979,1.804,4264.2,4262.2,2.34620618]
[1755867024296,0.36709033,4264.1,4262.3,2.83770419]
[1755867024606,0.36709033,4264.1,4262.3,0.49156151]
[1755867024766,0.36709033,4264.1,4262.4,4.23146096]
[1755867024946,0.4496,4264.0,4262.0,1.804]
[1755867025144,0.4496,4264.0,4262.1,0.02346261]
[1755867025145,0.66,4263.8,4262.1,0.02346261]
[1755867025457,0.66,4263.6,4262.1,0.49156261]
[1755867025660,0.66,4263.6,4262.1,0.02346261]
[1755867025864,0.66,4263.6,4261.8,0.024]
[1755867025865,0.66,4263.4,4261.8,0.024]
[1755867026043,0.66,4263.0,4261.8,0.024]
[1755867026281,34.3,4262.9,4261.8,0.024]
[1755867026452,3.66,4262.7,4261.8,0.024]
[1755867026649,0.66,4262.7,4261.8,0.024]
[1755867026956,0.66,4262.6,4261.8,0.024]
[1755867027373,0.4496,4262.9,4261.8,0.024]
[1755867028764,4.7466,4262.9,4261.8,0.024]
[1755867028961,0.47466,4262.8,4261.8,0.024]
[1755867029182,0.47386,4262.8,4261.8,0.024]
[1755867029549,0.4496,4262.9,4261.8,0.024]
[1755867029752,1.804,4263.3,4261.9,0.4681]
[1755867029960,17.1043386,4265.4,4262.7,2.34593098]
[1755867029961,0.001,4264.0,4262.7,2.34593098]
[1755867030162,0.001,4264.0,4263.3,2.34557699]
[1755867030360,0.001,4264.0,4263.4,0.02345545]
[1755867030572,0.001,4264.0,4263.5,2.34545433]
[1755867030851,0.001,4264.0,4263.9,2.34527076]
[1755867031190,0.02,4265.8,4263.9,2.34527076]
[1755867031191,0.02,4265.8,4264.0,3.0]
[1755867031484,0.36696882,4265.2,4264.1,0.0234516]
[1755867031654,0.02,4265.8,4264.2,2.34505129]
[1755867031855,0.02,4265.8,4264.3,0.0234505]
[1755867032089,0.02,4265.8,4264.4,2.2731]
[1755867032381,0.02,4265.8,4264.5,3.066098]
[1755867032787,0.02,4265.8,4264.6,0.4681]
[1755867033811,0.02,4265.8,4264.7,0.4681]
[1755867034013,0.4496,4265.7,4264.4,1.805]
[1755867035008,0.4496,4265.7,4264.7,0.366906]
[1755867035169,0.4496,4265.2,4264.4,1.805]
[1755867036075,0.021,4264.8,4264.4,2.2546]
[1755867036305,0.021,4264.8,4264.4,1.805]
[1755867036612,0.4706,4264.8,4264.4,1.805]
[1755867036913,0.021,4264.8,4264.4,1.82844995]
[1755867037141,0.021,4264.8,4264.4,2.2731]
[1755867037295,0.021,4264.8,4264.5,0.0234494]
[1755867037496,0.021,4264.8,4264.5,0.4915494]
[1755867037931,0.021,4264.8,4264.4,1.805]
[1755867038244,0.021,4264.8,4264.5,0.4681]
[1755867038819,0.021,4264.8,4264.4,1.805]
[1755867039619,0.021,4264.8,4264.3,0.4496]
[1755867039796,0.4491,4264.7,4264.3,0.4496]
[1755867039996,0.3114,4264.4,4264.3,0.4496]
[1755867040531,0.7605,4264.4,4263.8,1.804]
[1755867040747,0.4491,4264.4,4263.8,1.804]
[1755867040938,0.66,4264.3,4263.7,0.4491]
[1755867041435,0.6592,4264.3,4263.7,0.4491]
[1755867041732,0.6592,4264.3,4263.0,0.02345765]
[1755867042035,0.4491,4264.2,4263.0,0.705415]
[1755867042396,0.36705204,4264.0,4263.0,0.705415]
[1755867043097,0.36705204,4264.0,4262.9,1.804]
[1755867043437,0.36705204,4264.0,4262.9,2.509438]
[1755867046306,0.36705204,4264.0,4262.9,6.798438]
[1755867046720,0.4491,4264.2,4262.9,2.509438]
[1755867046917,0.4491,4264.2,4262.9,5.128438]
[1755867047120,0.4491,4264.2,4262.9,2.509438]
[1755867047318,0.66,4264.1,4262.9,1.804]
[1755867047519,0.66,4263.9,4262.6,4.282]
[1755867047720,0.66,4263.9,4262.3,4.30546151]
[1755867047921,0.66,4263.7,4262.3,4.282]
[1755867048133,0.66,4263.5,4262.2,1.804]
[1755867048336,0.4491,4263.4,4262.2,1.804]
[1755867049218,0.66,4263.3,4262.2,1.804]
[1755867049417,0.62601,4263.2,4262.2,1.804]
[1755867049640,0.66,4263.1,4261.9,0.705591]
[1755867049825,0.66,4262.9,4261.9,0.705591]
[1755867050028,0.36714548,4263.0,4261.8,0.024]
[1755867050227,0.36714548,4263.0,4261.9,0.4596]
[1755867050430,1.804,4263.2,4262.0,0.02346316]
[1755867050625,1.804,4263.2,4262.0,0.14473188]
[1755867050965,1.804,4263.2,4262.0,0.12126872]
[1755867051127,1.804,4263.2,4262.0,0.02346316]
[1755867051529,1.804,4263.2,4261.9,0.4596]
[1755867051845,1.1091,4263.1,4261.8,0.024]
[1755867052561,0.36714425,4263.0,4261.8,0.024]
[1755867052746,0.32802443,4262.9,4261.8,0.024]
[1755867053868,0.32722443,4262.9,4261.8,0.024]
[1755867054163,0.36714425,4263.0,4261.8,0.4836]
[1755867054465,0.36714425,4263.0,4261.9,0.02346371]
[1755867054625,0.36714425,4263.0,4262.0,0.02346316]
[1755867055773,0.36714425,4263.0,4262.1,0.4596]
[1755867056267,0.4491,4263.4,4262.2,0.02346206]
[1755867056425,0.4491,4263.4,4261.9,0.705568]
[1755867056630,0.4491,4263.4,4262.0,0.02346316]
[1755867056828,0.4491,4263.4,4262.0,2.36977416]
[1755867057067,0.4491,4263.8,4261.9,0.705568]
[1755867057380,0.4501,4264.3,4262.2,2.34620618]
[1755867057533,0.4501,4264.3,4262.4,2.34605849]
[1755867057863,0.4501,4264.3,4263.1,2.34569782]
[1755867057864,0.001,4264.3,4263.1,2.34569782]
[1755867058169,0.001,4264.3,4263.2,2.28705655]
[1755867058472,0.001,4264.3,4263.3,2.03270566]
[1755867058762,0.001,4264.3,4264.2,0.2879]
[1755867059469,0.001,4264.3,4264.2,0.7475]
[1755867062579,0.001,4264.3,4264.2,2.5515]
[1755867062749,0.001,4264.3,4264.2,4.89660576]
[1755867063377,0.001,4264.3,4264.2,2.5515]
[1755867063579,0.001,4264.3,4264.2,2.57495105]
[1755867063755,0.001,4264.3,4264.2,7.89660576]
[1755867064676,0.001,4264.3,4264.2,8.07416145]
[1755867064881,0.001,4264.3,4264.2,2.0919]
[1755867065086,0.001,4264.3,4263.5,1.804]
[1755867065292,0.7615,4264.3,4263.2,0.367139]
[1755867065441,0.7615,4264.3,4263.8,0.02]
[1755867065639,0.4491,4264.2,4263.8,0.02]
[1755867065887,3.31587076,4263.9,4263.8,0.02]
[1755867066092,0.66,4263.8,4262.3,0.367139]
[1755867066249,0.66,4263.6,4262.1,3.44246261]
[1755867066666,0.4491,4263.5,4262.1,3.44246261]
[1755867066863,0.4491,4263.5,4262.1,3.419]
[1755867067686,0.3114,4262.5,4262.0,1.804]
[1755867067891,0.3114,4262.5,4261.5,4.273]
[1755867068097,0.7774,4262.5,4261.4,1.804]
[1755867068336,0.7774,4262.5,4261.7,0.70558]
[1755867068449,1.4374,4262.5,4261.7,0.70558]
[1755867068650,1.88114,4262.5,4261.7,0.70558]
[1755867068896,1.4374,4262.5,4261.7,0.70558]
[1755867069076,3.78344105,4262.5,4261.3,0.004]
[1755867069259,6.78344105,4262.5,4261.3,0.004]
[1755867069460,4.4374,4262.5,4261.3,0.004]
[1755867069983,0.3114,4262.5,4261.3,0.004]
[1755867070292,1.804,4262.9,4261.5,0.449]
[1755867070460,0.3071,4262.5,4261.4,1.804]
[1755867070663,0.7731,4262.5,4262.3,0.004]
[1755867070886,0.36719332,4262.7,4262.3,0.004]
[1755867071080,0.3071,4262.5,4262.3,0.004]
[1755867071292,0.36719332,4262.7,4262.3,0.004]
[1755867072568,0.3071,4262.5,4262.3,0.004]
[1755867072980,0.7731,4262.5,4262.3,0.004]
[1755867073187,1.4331,4262.5,4262.3,0.004]
[1755867074402,6.77914105,4262.5,4262.3,0.004]
[1755867074972,36.91005096,4262.5,4262.3,0.004]
[1755867075175,39.49035112,4262.5,4262.3,0.004]
[1755867076080,39.49035112,4262.5,4260.9,0.004]
[1755867076280,3.66,4261.8,4259.5,1.805]
[1755867076594,3.66,4261.6,4260.0,0.094118]
[1755867076795,3.00675932,4261.2,4259.5,1.805]
[1755867076970,0.66,4261.0,4259.5,2.510989]
[1755867077375,0.66,4260.8,4259.5,0.705989]
[1755867077569,0.466,4260.7,4259.1,0.02347913]
[1755867077879,3.324,4260.6,4259.1,0.72946813]
[1755867078410,3.3232,4260.6,4259.1,0.72946813]
[1755867078614,3.76812,4260.6,4259.1,1.01687494]
[1755867078811,3.76812,4260.6,4259.1,0.705989]
[1755867079010,0.466,4260.5,4259.1,0.705989]
[1755867079214,0.66,4260.4,4259.1,0.705989]
[1755867079394,0.66,4260.2,4259.1,0.705989]
[1755867079592,3.76812,4260.6,4258.8,1.825]
[1755867079593,0.44492,4260.6,4259.2,0.02347858]
[1755867079792,4.256,4260.7,4259.0,0.3196]
[1755867079793,0.36736447,4260.4,4259.0,0.3196]
[1755867080008,0.36736447,4260.4,4258.9,0.706003]
[1755867080183,0.36736447,4260.4,4259.0,0.02347969]
[1755867080520,4.62336447,4260.4,4259.0,0.02347969]
[1755867080818,4.62336447,4260.4,4258.9,0.3196]
[1755867081018,5.18397012,4260.4,4259.0,0.02347969]
[1755867081511,0.92797012,4260.4,4259.0,2.37143983]
[1755867081693,0.36736447,4260.4,4259.0,0.02347969]
[1755867082615,0.466,4260.3,4258.9,0.21446]
[1755867082910,0.466,4260.3,4258.8,1.825]
[1755867083115,2.465,4260.2,4258.8,0.02]
[1755867083519,0.66,4260.0,4258.8,0.02]
[1755867083898,3.66,4259.8,4258.8,0.02]
[1755867084095,0.3071,4258.9,4258.8,0.02]
[1755867084518,0.7731,4258.9,4258.8,0.02]
[1755867085422,1.4331,4258.9,4258.8,0.02]
[1755867085595,2.00201,4258.9,4258.8,0.02]
[1755867085924,2.3695053,4258.9,4258.8,0.02]
[1755867086119,7.35003413,4258.9,4258.8,0.02]
[1755867086292,37.35003413,4258.9,4258.8,0.02]
[1755867086916,41.72636774,4258.9,4258.8,0.02]
[1755867087287,4.34201,4258.9,4258.8,0.024]
[1755867087618,4.4331,4258.9,4258.8,0.024]
[1755867087992,5.0351,4258.9,4258.8,0.024]
[1755867088219,38.0351,4258.9,4258.8,0.024]
[1755867088381,8.6951,4258.9,4258.8,0.024]
[1755867088788,38.6951,4258.9,4258.8,0.024]
[1755867088983,43.40526376,4258.9,4258.8,0.024]
[1755867089414,41.05723963,4258.9,4258.8,0.024]
[1755867089652,11.06223963,4258.9,4258.8,0.024]
[1755867089827,8.7001,4258.9,4258.8,0.024]
[1755867090120,41.04812413,4258.9,4258.8,0.024]
[1755867090498,41.04732413,4258.9,4258.8,0.024]
[1755867090701,41.73511048,4258.9,4258.8,0.024]
[1755867090900,39.38708635,4258.9,4258.8,0.024]
[1755867091231,43.77708543,4258.9,4258.8,0.024]
[1755867091426,0.36762167,4258.9,4258.8,0.024]
[1755867092724,0.36762167,4258.9,4258.8,0.3339]
[1755867092925,2.895,4259.6,4258.8,0.3339]
[1755867093127,4.278,4259.9,4258.9,0.02348024]
[1755867093450,0.36745309,4259.7,4258.8,0.024]
[1755867093650,1.0125984,4259.7,4258.8,0.024]
[1755867093853,0.36745309,4259.7,4258.8,0.024]
[1755867094314,0.36745309,4259.7,4258.9,0.02348024]
[1755867095512,0.36745309,4259.7,4258.8,0.024]
[1755867096045,3.0,4259.8,4258.8,0.024]
[1755867096046,1.126,4259.6,4258.8,0.024]